bitfinex/quotes_ETHUSD_20250210
["timestamp","ask_amount","ask_price","bid_price","bid_amount"]
[1739201700592,3.75996,2659.6,2659.1,3.7606]
[1739201700939,3.0,2659.7,2659.0,4.59063]
[1739201701229,3.0,2660.0,2659.2,0.03760197]
[1739201701428,3.75921,2660.2,2659.3,0.8299]
[1739201701623,0.79,2660.5,2659.8,3.75957]
[1739201701803,3.79,2660.5,2659.9,0.8299]
[1739201701991,3.0,2660.3,2659.9,4.58935]
[1739201702186,2.67374805,2660.7,2659.9,4.58935]
[1739201702187,8.30669,2660.8,2660.1,3.75924]
[1739201702406,4.54832,2660.8,2660.3,3.75896]
[1739201702606,2.67374805,2661.0,2660.4,0.03758839]
[1739201702828,3.75805,2661.0,2660.5,3.75865]
[1739201703026,4.54791,2661.1,2660.5,4.58855]
[1739201703330,3.75791,2661.1,2660.6,3.75844]
[1739201704186,6.43135805,2661.3,2660.6,3.75844]
[1739201704523,4.54712,2661.7,2661.0,3.7579]
[1739201704904,3.0,2661.4,2661.0,3.7579]
[1739201705107,3.0,2661.6,2661.0,3.7579]
[1739201705404,4.54712,2661.7,2661.0,3.75788]
[1739201705604,3.0,2661.4,2660.8,3.7582]
[1739201705832,3.0,2661.4,2660.9,3.75807]
[1739201706592,3.0,2661.2,2660.6,3.1975]
[1739201706796,3.0,2660.8,2660.6,3.1975]
[1739201707106,3.0,2661.0,2660.2,0.8299]
[1739201707306,3.75868,2660.6,2660.0,0.8299]
[1739201707505,5.67374805,2661.0,2660.0,0.8299]
[1739201707506,3.75832,2660.8,2660.0,4.58918]
[1739201707704,6.43177805,2661.0,2660.4,3.75872]
[1739201707911,3.75717,2661.6,2659.9,3.75948]
[1739201707912,4.5125,2661.4,2660.8,3.75826]
[1739201708112,3.0,2661.3,2660.8,3.75826]
[1739201708318,3.7575,2661.4,2660.8,3.75818]
[1739201708518,10.18816805,2661.6,2661.0,3.75797]
[1739201708821,3.75715,2661.6,2660.8,3.75818]
[1739201709009,3.0,2661.5,2661.0,3.75796]
[1739201709200,6.75728,2661.5,2661.0,3.75796]
[1739201710435,7.51211,2661.7,2661.1,3.75776]
[1739201710648,2.67374805,2661.9,2661.2,0.7806]
[1739201710811,3.75659,2662.0,2661.4,3.75739]
[1739201711140,3.0,2661.9,2661.4,3.75739]
[1739201711296,3.0,2661.7,2661.2,4.53821]
[1739201711658,3.0,2661.6,2661.2,4.53821]
[1739201711822,3.0,2662.0,2661.4,3.75729]
[1739201712026,6.75658,2662.0,2661.4,3.75729]
[1739201712230,3.75676,2661.9,2661.4,3.75729]
[1739201712829,3.75676,2661.9,2661.2,4.53824]
[1739201712830,3.0,2661.7,2661.2,4.53824]
[1739201713030,3.0,2661.7,2661.2,4.53821]
[1739201714327,3.75713,2661.7,2661.2,0.7806]
[1739201714523,3.755,2662.1,2661.2,0.7806]
[1739201714524,3.75674,2661.9,2661.2,0.7806]
[1739201714911,3.0,2661.7,2661.3,3.75748]
[1739201715127,3.75704,2661.7,2661.2,0.7806]
[1739201715300,3.0,2661.7,2661.2,0.7806]
[1739201715507,3.75701,2661.7,2661.2,4.53818]
[1739201716252,0.1446137,2662.2,2661.2,0.7806]
[1739201716551,0.1446137,2662.2,2662.0,7.513]
[1739201716710,0.1446137,2662.2,2662.1,3.75643]
[1739201716907,0.1446137,2662.2,2662.0,3.79406124]
[1739201717241,0.1446137,2662.2,2662.0,3.75644]
[1739201717816,0.1446137,2662.2,2661.8,4.50996]
[1739201718218,0.1446137,2662.2,2661.8,0.7532]
[1739201718436,3.75647,2662.1,2661.8,0.7532]
[1739201718747,3.75657,2662.0,2661.8,0.7532]
[1739201718922,3.0,2661.5,2661.0,0.7532]
[1739201719151,7.51523,2661.3,2661.0,0.7532]
[1739201719421,3.75788,2661.1,2660.7,0.7532]
[1739201719634,3.75762,2661.3,2660.7,4.51158]
[1739201719852,3.75762,2661.3,2660.7,8.26996]
[1739201720057,3.0,2661.3,2660.9,3.75811]
[1739201720559,6.75761,2661.3,2660.7,4.51152]
[1739201720714,6.75761,2661.3,2660.8,3.75823]
[1739201721351,3.0,2661.5,2660.9,3.75812]
[1739201721666,6.75732,2661.5,2660.8,3.75826]
[1739201721811,3.75775,2661.2,2660.7,0.7532]
[1739201722014,3.75806,2661.0,2660.4,0.7532]
[1739201722256,3.75806,2661.0,2660.4,4.51194]
[1739201722967,3.75806,2661.0,2660.5,3.75866]
[1739201723123,3.75786,2661.1,2660.6,3.75844]
[1739201723318,3.75751,2661.4,2660.7,0.03758204]
[1739201723553,3.0,2661.2,2660.8,3.75817]
[1739201724320,3.0,2661.5,2660.4,0.7532]
[1739201724546,4.5338,2661.7,2661.0,3.75796]
[1739201724927,3.0,2661.6,2661.0,3.75796]
[1739201725467,2.67374805,2661.9,2661.4,3.75734]
[1739201725638,3.9009837,2662.2,2661.6,3.75712]
[1739201725639,10.33112175,2662.2,2661.6,3.75712]
[1739201725957,3.0,2661.8,2661.3,3.75754]
[1739201726463,3.75738,2661.5,2661.1,3.1975]
[1739201726763,3.75738,2661.5,2661.0,3.75785]
[1739201727260,3.0,2661.6,2661.0,3.75785]
[1739201727559,3.0,2661.6,2661.3,3.75744]
[1739201727736,6.75657,2662.0,2661.4,3.7573]
[1739201728057,3.75693,2661.8,2661.2,3.75761]
[1739201728560,3.75693,2661.8,2661.2,7.51524]
[1739201728764,3.0,2661.6,2661.1,3.1975]
[1739201728929,4.54448,2661.5,2661.1,3.1975]
[1739201729125,4.54448,2661.5,2661.0,6.9554]
[1739201730060,7.51464,2661.5,2661.0,3.1975]
[1739201730269,3.75728,2661.5,2661.0,6.95548]
[1739201730558,6.75716,2661.6,2661.1,3.75775]
[1739201730738,3.0,2661.6,2661.1,3.75775]
[1739201730941,3.0,2661.6,2661.2,3.75765]
[1739201731264,3.0,2661.7,2661.2,3.7577]
[1739201731585,3.0,2661.7,2661.1,3.75775]
[1739201731885,3.75715,2661.6,2661.1,3.75775]
[1739201732031,3.75715,2661.6,2661.2,3.75769]
[1739201732229,3.75715,2661.6,2661.1,3.75775]
[1739201732625,3.75729,2661.5,2661.1,3.75775]
[1739201732826,3.75729,2661.5,2661.2,0.10581301]
[1739201733059,3.75756,2661.3,2661.0,3.1975]
[1739201733265,3.7577,2661.2,2661.1,0.10569687]
[1739201733467,6.75749,2661.4,2661.1,0.10569687]
[1739201733958,3.0,2661.5,2661.2,4.51652]
[1739201734213,2.67374805,2661.9,2661.4,3.75736]
[1739201734365,0.1446137,2662.2,2661.9,3.75671]
[1739201734727,0.1446137,2662.2,2662.0,3.86147348]
[1739201735253,0.1446137,2662.2,2662.0,3.86146348]
[1739201735878,0.1446137,2662.2,2662.1,3.75643]
[1739201736126,0.1446137,2662.2,2662.1,7.71283]
[1739201736362,0.1446137,2662.2,2662.1,7.81746118]
[1739201737762,0.1446137,2662.2,2662.1,8.57815574]
[1739201741138,3.7e-06,2662.2,2662.1,11.57815574]
[1739201741365,3.7e-06,2662.2,2662.1,12.12815574]
[1739201742580,0.005,2663.4,2663.3,3.75474]
[1739201742740,0.005,2663.4,2663.3,6.95224]
[1739201743077,0.005,2663.4,2663.3,7.05524668]
[1739201744865,0.005,2663.4,2663.3,3.30050668]
[1739201745982,0.005,2663.4,2663.3,0.10300668]
[1739201745983,6.75959,2663.4,2663.3,0.10300668]
[1739201746280,3.75484,2663.3,2662.9,3.1975]
[1739201746453,3.005,2663.4,2663.3,0.10203059]
[1739201746454,6.75968,2663.4,2663.3,0.10203059]
[1739201746659,0.005,2663.4,2663.1,3.755]
[1739201746873,0.005,2663.4,2663.2,0.10222959]
[1739201747067,0.005,2663.4,2663.2,3.85709959]
[1739201747482,0.005,2663.4,2663.2,0.10222959]
[1739201747650,3.005,2663.4,2663.2,0.10222959]
[1739201747845,3.005,2663.4,2662.9,6.9527]
[1739201748050,3.005,2663.4,2662.9,3.1975]
[1739201748051,3.75482,2663.3,2662.9,3.1975]
[1739201748381,6.75972,2663.4,2663.0,0.10238179]
[1739201749210,10.51445,2663.4,2663.0,0.10238179]
[1739201749355,3.75966,2663.4,2663.0,0.10238179]
[1739201749557,3.75963,2663.4,2663.0,0.10238179]
[1739201749786,0.005,2663.4,2663.0,0.10238179]
[1739201749947,6.75969,2663.4,2663.0,0.10238179]
[1739201750154,0.005,2663.4,2663.0,0.10238179]
[1739201750482,3.75967,2663.4,2663.0,0.10238179]
[1739201750687,3.0,2663.3,2663.0,0.10238179]
[1739201751653,0.005,2663.4,2663.0,3.85742179]
[1739201752359,3.005,2663.4,2663.2,3.75484]
[1739201752691,0.005,2663.4,2663.3,3.85687045]
[1739201754502,0.005,2663.4,2663.3,0.10213045]
[1739201754689,0.005,2663.4,2663.0,4.52567]
[1739201754894,0.005,2663.4,2663.3,0.10213045]
[1739201755093,0.005,2663.4,2663.1,3.75494]
[1739201755406,0.005,2663.4,2663.3,3.85687045]
[1739201755567,0.005,2663.4,2663.3,3.75474]
[1739201755568,1e-05,2663.4,2663.3,3.75474]
[1739201755774,1e-05,2663.4,2663.3,7.86233995]
[1739201756102,1e-05,2663.4,2663.3,7.82480147]
[1739201759774,1e-05,2663.4,2663.3,8.37480147]
[1739201759981,1e-05,2663.4,2663.3,17.38180147]
[1739201761180,1e-05,2663.4,2663.3,13.07480147]
[1739201761403,1e-05,2663.4,2663.3,8.54946147]
[1739201761605,1e-05,2663.4,2663.3,12.30420147]
[1739201766116,1e-05,2663.4,2663.3,14.03764952]
[1739201766290,1e-05,2663.4,2663.3,17.79464952]
[1739201766617,1e-05,2663.4,2663.3,15.12090147]
[1739201767203,1e-05,2663.4,2663.3,7.81390147]
[1739201768320,1e-05,2663.4,2663.3,8.36390147]
[1739201768808,1e-05,2663.4,2663.3,12.12090147]
[1739201769490,1e-05,2663.4,2663.3,8.36390147]
[1739201770685,1e-05,2663.4,2663.3,12.12090147]
[1739201770880,1e-05,2663.4,2663.3,14.28146341]
[1739201771813,1e-05,2663.4,2663.3,12.12090147]
[1739201773316,1e-05,2663.4,2663.3,11.57090147]
[1739201773483,1e-05,2663.4,2663.3,0.10196147]
[1739201773686,1e-05,2663.4,2663.2,3.93838549]
[1739201773920,1e-05,2663.4,2663.3,0.09774851]
[1739201774107,1e-05,2663.4,2663.3,3.75474]
[1739201774291,1e-05,2663.4,2663.3,3.85248851]
[1739201774488,1e-05,2663.4,2663.3,0.09774851]
[1739201774688,1e-05,2663.4,2663.3,3.85248851]
[1739201775387,0.75401,2663.4,2663.3,0.09774851]
[1739201775604,4.5086,2663.4,2662.8,3.75537]
[1739201775820,3.75401,2663.4,2663.3,0.09426865]
[1739201776021,3.75401,2663.4,2662.8,3.7553]
[1739201776220,3.75401,2663.4,2663.3,0.09426865]
[1739201776523,3.75489,2663.2,2662.6,3.75564]
[1739201776702,4.50875,2663.3,2662.8,3.75542]
[1739201776898,3.75517,2663.0,2662.5,3.75583]
[1739201777125,0.754,2662.9,2662.4,3.75592]
[1739201777821,0.754,2662.9,2662.0,3.1975]
[1739201778021,3.75566,2662.7,2662.1,3.7564]
[1739201778227,0.754,2662.6,2662.1,3.7564]
[1739201778394,0.754,2662.6,2662.0,3.1975]
[1739201778730,0.754,2662.0,2661.7,4.49150261]
[1739201778930,0.754,2662.0,2661.8,0.55]
[1739201779254,0.754,2662.6,2661.9,0.55]
[1739201779391,0.754,2662.6,2662.1,3.75632]
[1739201779727,0.754,2662.6,2662.2,3.75619]
[1739201780026,0.754,2662.6,2662.3,7.51222]
[1739201780228,0.754,2663.2,2662.5,3.75586]
[1739201780528,3.0,2662.9,2662.5,0.55]
[1739201780724,0.754,2662.8,2662.6,0.09560556]
[1739201781232,3.754,2662.8,2662.3,3.1975]
[1739201781427,4.50947,2662.8,2662.7,0.09551022]
[1739201781595,4.50947,2662.8,2662.3,6.95362]
[1739201781794,4.50947,2662.8,2662.7,0.09551022]
[1739201781995,0.754,2662.8,2662.3,6.95362]
[1739201782204,0.754,2662.8,2662.7,0.09551022]
[1739201782527,0.754,2662.8,2662.4,7.5118]
[1739201782732,3.754,2662.8,2662.7,0.09551022]
[1739201782903,3.754,2662.8,2662.4,3.75587]
[1739201783110,0.754,2662.8,2662.5,4.40153091]
[1739201783314,0.754,2662.8,2662.6,3.7557]
[1739201783510,0.754,2662.8,2662.7,0.09551022]
[1739201784134,3.754,2662.8,2662.7,0.09551022]
[1739201784434,3.754,2662.8,2662.5,0.55]
[1739201784607,3.754,2662.8,2662.7,0.09613015]
[1739201784817,0.754,2662.8,2662.5,0.55]
[1739201785014,0.754,2662.8,2662.7,0.09613015]
[1739201785323,0.754,2662.8,2662.7,0.64613015]
[1739201785522,0.754,2663.1,2663.0,3.75516]
[1739201785721,0.75401,2663.4,2663.2,3.75481]
[1739201785919,0.75401,2663.4,2663.3,4.40031357]
[1739201786126,1e-05,2663.4,2663.3,4.40031357]
[1739201787335,1e-05,2663.4,2663.3,7.59781357]
[1739201787542,1e-05,2663.4,2663.3,7.63535476]
[1739201787714,1e-05,2663.4,2663.3,7.59781357]
[1739201788119,1e-05,2663.4,2663.3,8.35814862]
[1739201791452,1e-05,2663.4,2663.3,7.59781357]
[1739201791639,0.81741,2663.4,2663.3,3.29307357]
[1739201792528,0.81741,2663.4,2663.3,7.59781357]
[1739201792727,1e-05,2663.4,2663.3,7.59781357]
[1739201793345,1e-05,2663.4,2663.3,4.40031357]
[1739201793740,1e-05,2663.4,2663.3,0.64557357]
[1739201794068,3.7546,2663.4,2663.3,0.09557357]
[1739201794294,7.572,2663.4,2663.3,0.09557357]
[1739201794562,3.0,2663.2,2662.5,12.20327]
[1739201794739,3.0,2663.2,2662.5,3.75584]
[1739201794939,0.8174,2662.8,2662.3,4.05406]
[1739201795160,0.8174,2662.8,2662.1,3.95232828]
[1739201795361,3.75563,2662.7,2662.1,3.95232828]
[1739201795569,4.57293,2662.8,2662.1,3.95232828]
[1739201795744,4.57293,2662.8,2662.2,0.55]
[1739201795941,4.57293,2662.8,2662.2,0.64628539]
[1739201796269,4.57293,2662.8,2662.3,3.75611]
[1739201796471,4.57293,2662.8,2662.2,0.09628539]
[1739201796472,3.75607,2662.4,2662.2,0.09628539]
[1739201796765,0.8174,2662.3,2661.8,12.20433]
[1739201796932,0.8174,2662.3,2662.0,3.75651]
[1739201797139,0.8174,2662.3,2662.1,3.7563]
[1739201797334,0.8174,2662.3,2662.1,3.75639]
[1739201798173,0.8174,2662.3,2662.1,0.55]
[1739201799843,3.75548,2662.8,2662.1,0.55]
[1739201800174,3.75548,2662.8,2662.3,0.55]
[1739201800175,7.57302,2662.7,2662.3,0.55]
[1739201801163,0.8174,2662.7,2662.3,0.55]
[1739201801355,0.8174,2662.7,2662.6,0.55]
[1739201801851,0.8174,2662.7,2662.0,3.75646]
[1739201802175,3.75572,2662.6,2662.1,3.75634]
[1739201802343,3.0,2662.5,2662.2,0.55]
[1739201802974,6.75594,2662.5,2662.0,4.30654]
[1739201803156,3.0,2662.5,2662.1,3.75643]
[1739201803365,3.8174,2662.0,2661.3,3.9725]
[1739201803552,3.75749,2661.4,2661.0,8.4475]
[1739201803881,3.75761,2661.3,2660.9,3.1975]
[1739201804038,0.8174,2661.4,2661.1,0.19606561]
[1739201804245,0.8174,2661.4,2661.2,0.55]
[1739201804457,0.8174,2661.4,2661.3,3.75756]
[1739201804676,0.78,2661.7,2661.4,3.75734]
[1739201804979,0.78,2661.7,2661.5,0.55]
[1739201805472,0.78,2661.7,2661.5,4.30726]
[1739201805678,0.78,2661.7,2661.5,0.55]
[1739201806055,0.78,2661.7,2661.3,0.55]
[1739201806056,3.0,2661.6,2661.3,0.55]
[1739201806256,3.0,2661.6,2661.2,0.55]
[1739201806679,3.0,2661.6,2661.2,4.30769]
[1739201807076,4.53708,2661.7,2661.2,4.30769]
[1739201807077,0.78,2661.7,2661.4,0.55]
[1739201807872,0.78,2661.7,2661.3,4.30751]
[1739201808077,0.7788,2662.0,2661.3,0.55]
[1739201808242,0.7788,2662.0,2661.6,4.30702]
[1739201808446,0.7788,2662.0,2661.6,0.55]
[1739201808781,3.7788,2662.0,2661.6,0.55]
[1739201808976,6.75695,2661.8,2661.3,3.75744]
[1739201809476,3.0,2661.8,2661.3,7.51491]
[1739201809680,3.0,2661.8,2661.3,3.75744]
[1739201809998,0.7788,2661.7,2661.4,0.55]
[1739201810203,0.7788,2661.7,2661.2,3.1975]
[1739201810344,3.7573,2661.5,2661.2,3.1975]
[1739201810550,3.7573,2661.5,2661.3,0.55]
[1739201810758,3.0,2661.4,2661.3,0.55]
[1739201811173,5.1631322,2661.6,2661.2,0.55]
[1739201811381,3.0,2661.4,2661.2,0.55]
[1739201811958,3.0,2661.5,2661.2,0.55]
[1739201812159,5.9203122,2661.6,2661.2,0.55]
[1739201812160,3.7788,2661.7,2661.2,4.3076]
[1739201812386,7.5359,2661.7,2661.2,0.55]
[1739201812683,3.75798,2661.0,2660.2,3.75902]
[1739201812856,3.7584,2660.7,2660.0,0.8067]
[1739201813186,3.7788,2660.8,2660.3,0.19591841]
[1739201813546,0.7788,2660.8,2660.3,3.95483841]
[1739201813746,0.7788,2660.8,2660.4,3.75882]
[1739201814154,0.7788,2660.8,2660.5,3.75867]
[1739201814577,0.7788,2660.8,2660.3,3.95483841]
[1739201814906,3.7788,2660.8,2660.4,0.55]
[1739201815046,3.0,2660.7,2660.4,0.55]
[1739201815251,6.75883,2660.4,2660.3,0.19591841]
[1739201815448,7.53763,2660.4,2660.3,0.19591841]
[1739201816452,7.53763,2660.4,2660.3,0.83997886]
[1739201816847,7.53763,2660.4,2660.3,0.74591841]
[1739201818097,7.53763,2660.4,2660.3,0.84012757]
[1739201818264,7.53763,2660.4,2660.3,0.74591841]
[1739201820793,7.53763,2660.4,2660.3,0.8401657]
[1739201821315,7.53763,2660.4,2660.3,0.74591841]
[1739201822088,7.53763,2660.4,2660.3,0.8401657]
[1739201823001,7.53763,2660.4,2660.3,0.09424729]
[1739201823219,0.7522,2660.3,2659.0,3.1975]
[1739201823513,3.76109,2658.8,2658.7,0.8151]
[1739201823666,0.7522,2659.3,2658.7,0.8151]
[1739201823667,3.76096,2658.9,2658.7,0.8151]
[1739201823866,6.76089,2659.0,2658.8,0.19575122]
[1739201824087,3.0,2658.9,2658.8,0.19575122]
[1739201824684,3.0,2658.9,2658.8,0.74575122]
[1739201824885,3.0,2658.9,2658.8,0.19575122]
[1739201825557,7.51315,2658.9,2658.8,0.19575122]
[1739201825760,7.51315,2658.9,2658.8,0.2788019]
[1739201825966,7.51315,2658.9,2658.8,0.19575122]
[1739201826268,3.7522,2658.9,2658.8,0.19575122]
[1739201826697,3.0,2658.9,2658.8,4.59055805]
[1739201827259,3.0,2658.9,2658.8,0.82946805]
[1739201828484,6.76095,2658.9,2658.8,0.82946805]
[1739201829190,3.0,2658.9,2658.8,0.82946805]
[1739201829586,6.76095,2658.9,2658.8,0.82946805]
[1739201830028,3.0,2658.9,2658.8,0.82946805]
[1739201830818,3.0,2658.9,2658.8,4.59055805]
[1739201831126,0.7522,2659.5,2658.9,0.55]
[1739201831322,3.0,2659.1,2658.9,0.55]
[1739201831485,3.0,2659.1,2659.0,0.63356747]
[1739201831688,3.76054,2659.2,2659.0,0.08356747]
[1739201832017,3.76054,2659.2,2658.9,0.55]
[1739201832229,3.76054,2659.2,2659.1,0.08337293]
[1739201832420,3.76054,2659.2,2658.9,0.55]
[1739201832627,3.0,2659.3,2659.1,0.08337293]
[1739201832824,3.0,2659.3,2658.9,4.31083]
[1739201832994,2.66764966,2660.3,2659.3,0.55]
[1739201833192,0.7527,2660.2,2660.0,0.55]
[1739201833589,0.7527,2660.8,2660.1,0.63244016]
[1739201833899,0.7527,2660.8,2660.4,4.30873]
[1739201834223,3.0,2660.5,2660.2,0.55]
[1739201834523,3.75809,2661.0,2660.6,0.55]
[1739201834712,3.0,2660.9,2660.6,0.55]
[1739201834902,0.7527,2661.1,2660.6,4.30848]
[1739201835101,0.7527,2661.5,2661.0,0.55]
[1739201835516,0.7527,2661.5,2661.0,4.30797]
[1739201835695,6.42454966,2661.8,2661.3,0.55]
[1739201835895,0.7527,2661.9,2661.3,4.30753]
[1739201836140,0.7527,2661.9,2661.1,0.55]
[1739201836324,3.75698,2661.8,2661.1,4.30781]
[1739201836519,3.757,2661.7,2661.1,4.30781]
[1739201836710,0.7527,2661.9,2661.1,4.30781]
[1739201836914,0.7527,2661.9,2661.2,0.55]
[1739201837203,0.7527,2661.9,2661.4,0.55]
[1739201837204,3.7527,2661.9,2661.4,0.55]
[1739201837624,3.0,2661.7,2661.3,0.55]
[1739201838300,3.75701,2661.7,2661.3,0.55]
[1739201838519,3.0,2661.5,2661.3,0.55]
[1739201838727,3.0,2661.7,2661.3,0.55]
[1739201839798,4.50904,2662.2,2661.7,0.55]
[1739201840006,3.75608,2662.4,2661.7,0.55]
[1739201840544,3.0,2662.2,2661.7,4.30699]
[1739201840733,3.0,2662.3,2661.8,3.75684]
[1739201840946,3.0,2662.3,2661.9,0.55]
[1739201841318,3.0,2662.3,2662.1,0.55]
[1739201841631,3.0,2662.3,2662.2,0.62555322]
[1739201841813,8.26428,2662.6,2662.3,0.55]
[1739201842014,3.0,2662.4,2662.3,0.55]
[1739201842209,3.75614,2662.4,2662.0,0.55]
[1739201842397,3.75615,2662.3,2662.0,0.55]
[1739201842608,3.0,2662.2,2661.9,0.55]
[1739201842926,3.0,2662.5,2661.9,0.58756589]
[1739201843100,3.0,2662.5,2662.1,0.55]
[1739201843561,7.50848,2662.6,2662.1,0.55]
[1739201843848,5.24546503,2662.9,2662.4,0.55]
[1739201844019,3.75544,2662.8,2662.4,0.55]
[1739201844204,5.66764966,2662.7,2662.2,0.55]
[1739201844409,7.50885,2662.3,2662.2,0.55]
[1739201844627,3.7527,2662.3,2661.4,4.57188]
[1739201844809,3.7563,2662.2,2661.7,0.55]
[1739201845324,3.0,2661.9,2661.5,0.55]
[1739201845701,3.75686,2661.8,2661.5,0.55]
[1739201845906,3.75713,2661.6,2661.0,4.57251]
[1739201846142,3.75743,2661.4,2661.0,0.8146]
[1739201846347,3.75778,2661.2,2661.0,0.8146]
[1739201846842,3.75778,2661.2,2660.6,4.57312]
[1739201847059,3.0,2661.6,2660.6,0.8146]
[1739201847377,3.75794,2661.1,2660.6,0.8146]
[1739201847582,3.75836,2660.8,2660.3,0.8146]
[1739201847719,3.75878,2660.5,2660.1,3.1975]
[1739201848041,6.45974966,2660.6,2659.8,3.1975]
[1739201848245,3.0,2660.1,2659.8,3.1975]
[1739201848624,3.0,2660.1,2659.9,0.07032111]
[1739201848625,3.75942,2660.0,2659.9,0.07032111]
[1739201848823,3.75959,2659.9,2659.3,4.57617]
[1739201849235,3.0,2660.1,2659.3,0.8158]
[1739201849430,3.0,2660.1,2659.1,1.15488235]
[1739201849431,3.75996,2659.6,2659.1,0.39168775]
[1739201849641,3.76013,2659.5,2659.1,0.39168775]
[1739201849848,3.0,2659.4,2659.1,0.39168775]
[1739201850178,3.0,2659.5,2659.1,0.39168775]
[1739201850463,3.0,2659.5,2659.2,0.55]
[1739201850685,6.76012,2659.5,2659.2,0.55]
[1739201850874,6.76012,2659.5,2659.1,0.39168775]
[1739201851269,3.76026,2659.4,2659.1,0.39168775]
[1739201851463,3.0,2659.9,2659.1,0.39168775]
[1739201851652,3.76031,2659.4,2659.1,0.39168775]
[1739201851839,3.76052,2659.2,2659.1,0.39168775]
[1739201852340,3.76052,2659.2,2659.1,0.94168775]
[1739201852540,3.76052,2659.2,2659.1,0.39168775]
[1739201853061,3.0,2659.3,2659.1,0.39168775]
[1739201853257,6.76043,2659.3,2659.1,0.39168775]
[1739201853463,6.76052,2659.2,2659.1,0.39168775]
[1739201854356,3.7609,2659.0,2658.3,7.52332]
[1739201854538,3.7609,2659.0,2658.7,0.39162341]
[1739201854749,3.76095,2658.9,2658.8,0.62211352]
[1739201855161,3.76095,2658.9,2658.5,0.55]
[1739201855365,6.76109,2658.8,2658.7,0.55]
[1739201855572,6.76109,2658.8,2658.7,0.62225808]
[1739201855782,3.0,2658.8,2658.7,0.62225808]
[1739201856776,6.76109,2658.8,2658.7,0.62225808]
[1739201856972,6.76109,2658.8,2658.7,0.07225808]
[1739201857180,3.76151,2658.5,2658.4,0.39163163]
[1739201857349,3.0,2658.5,2658.4,0.39163163]
[1739201857540,3.0,2658.5,2658.4,0.94163163]
[1739201857768,6.76101,2658.9,2658.5,0.55]
[1739201858069,3.7611,2658.8,2658.7,0.55]
[1739201858269,6.7611,2658.8,2658.7,0.55]
[1739201858452,6.7611,2658.8,2658.7,0.62246142]
[1739201858851,3.0,2658.7,2658.4,0.39163163]
[1739201859057,3.0,2658.8,2658.7,0.07340958]
[1739201859274,3.0,2658.8,2658.4,0.39163163]
[1739201859478,6.76116,2658.8,2658.7,0.07340958]
[1739201859678,6.76116,2658.8,2658.4,0.39163163]
[1739201859847,3.0,2658.8,2658.7,0.07340958]
[1739201860055,3.0,2658.8,2658.5,0.55]
[1739201860279,3.0,2658.8,2658.7,0.62340958]
[1739201860478,3.0,2658.8,2658.7,0.55]
[1739201860479,7.55319,2658.8,2658.7,0.55]
[1739201862170,6.76109,2658.8,2658.7,0.62339451]
[1739201862744,3.0,2658.8,2658.7,0.62339451]
[1739201863076,6.76109,2658.8,2658.7,0.62339451]
[1739201864414,6.76109,2658.8,2658.7,0.55]
[1739201865779,6.76109,2658.8,2657.9,4.40455829]
[1739201865780,6.76222,2658.0,2657.9,3.58875829]
[1739201865953,6.76222,2658.0,2657.6,0.7856]
[1739201865954,3.76265,2657.7,2657.6,0.7856]
[1739201866162,6.7623,2658.0,2657.3,1.17668062]
[1739201866360,3.76305,2657.5,2657.3,1.17668062]
[1739201866611,3.0,2657.4,2656.9,1.22102109]
[1739201866902,3.8153,2657.4,2656.8,0.39115481]
[1739201867052,3.0,2656.9,2656.6,0.7856]
[1739201867783,3.0,2657.1,2656.6,4.54971]
[1739201867961,3.0,2657.1,2656.7,3.76404]
[1739201868164,3.0,2657.1,2656.6,4.5498]
[1739201868515,3.8153,2657.4,2656.6,0.7856]
[1739201868670,3.0,2656.7,2656.6,0.7856]
[1739201868854,3.76431,2656.6,2656.4,0.39119927]
[1739201869292,3.0,2656.5,2656.2,0.7856]
[1739201869493,3.0,2656.9,2656.2,4.55029]
[1739201869701,0.8153,2657.4,2656.9,3.76377]
[1739201869856,0.8153,2657.4,2657.0,0.55]
[1739201870261,0.8153,2657.4,2657.0,4.31364]
[1739201870503,3.0,2657.4,2657.0,4.31364]
[1739201870797,0.2,2658.3,2657.0,4.31364]
[1739201870798,0.8153,2657.8,2657.3,4.31312]
[1739201871092,0.8153,2657.8,2657.2,0.55]
[1739201871296,0.8153,2657.8,2657.5,0.55]
[1739201871297,3.0,2657.6,2657.5,0.55]
[1739201871498,3.0,2657.6,2657.3,0.07595116]
[1739201871676,3.8153,2657.8,2657.3,3.76312]
[1739201871878,0.8153,2658.2,2657.5,0.55]
[1739201872081,3.76223,2658.0,2657.5,4.3129]
[1739201872286,0.8153,2658.2,2657.7,4.31256]
[1739201872595,3.76187,2658.3,2657.9,0.55]
[1739201872763,0.8153,2658.5,2657.9,0.55]
[1739201872972,3.0,2658.2,2658.0,0.07519455]
[1739201873197,7.57738,2658.1,2658.0,0.07519455]
[1739201873461,3.76293,2657.6,2657.1,0.55]
[1739201873697,3.0,2657.6,2657.1,0.55]
[1739201873997,3.0,2657.6,2657.3,0.55]
[1739201874208,3.0,2657.8,2657.3,4.31313]
[1739201874370,3.76255,2657.8,2657.5,0.55]
[1739201874570,3.76255,2657.8,2657.7,0.55]
[1739201874811,3.76255,2657.8,2657.7,0.62239293]
[1739201876381,6.76234,2658.0,2657.7,0.62239293]
[1739201876926,3.0,2658.0,2657.7,0.62239293]